lending/lending_fUSD_20240112
["ID","MTS","AMOUNT","RATE_DAILY","PERIOD"]
[311346448,1705065123069,-2056.42,0.00027245,2]
[311346449,1705065123078,-600.05,0.00027245,2]
[311346450,1705065123087,-1076.15,0.00027245,2]
[311346451,1705065123097,-500.0,0.00027245,2]
[311346452,1705065123106,-1891.13,0.00027245,2]
[311346453,1705065123115,-2556.24,0.00027245,2]
[311346454,1705065123124,-750.14,0.00027245,2]
[311346455,1705065123134,-2721.6,0.00027245,2]
[311346456,1705065123143,-884.19,0.00027245,2]
[311346457,1705065123152,-2018.21,0.00027245,2]
[311346458,1705065123165,-2134.94,0.00027245,2]
[311346459,1705065123174,-1493.07,0.00027245,2]
[311346460,1705065123184,-1084.3,0.00027245,2]
[311346461,1705065123193,-612.02,0.00027245,2]
[311346462,1705065123203,-500.0,0.00027245,2]
[311346463,1705065123213,-5673.19,0.00027245,2]
[311346464,1705065123222,-1028.9,0.00027245,2]
[311346465,1705065123233,-2233.34,0.00027245,2]
[311346466,1705065123242,-710.28,0.00027245,2]
[311346467,1705065123252,-1431.33,0.00027248,2]
[311346468,1705065123261,-500.0,0.00027248,2]
[311346469,1705065123271,-500.0,0.00027248,2]
[311346470,1705065123281,-500.0,0.00027248,2]
[311346471,1705065123290,-214.36330884,0.00027248,2]
[311346472,1705065123299,-526.28,0.00027248,2]
[311346473,1705065123308,-419.41846517,0.00027248,2]
[311346474,1705065123318,-500.0,0.00027248,2]
[311346475,1705065123327,-549.86842452,0.00027248,2]
[311346476,1705065123337,-500.0,0.00027248,2]
[311346477,1705065123346,-543.44,0.00027248,2]
[311346478,1705065123355,-500.0,0.00027248,2]
[311346479,1705065123365,-500.0,0.00027248,2]
[311346480,1705065123374,-553.95,0.00027248,2]
[311346481,1705065123384,-500.0,0.00027248,2]
[311346482,1705065123394,-516.33,0.00027248,2]
[311346483,1705065123403,-586.6,0.00027248,2]
[311346484,1705065123413,-500.0,0.00027248,2]
[311346485,1705065123422,-500.0,0.00027248,2]
[311346486,1705065123431,-515.42,0.00027248,2]
[311346487,1705065123441,-592.8,0.00027248,2]
[311346488,1705065123451,-500.0,0.00027248,2]
[311346489,1705065123460,-500.0,0.00027248,2]
[311346490,1705065123469,-150.0,0.00027248,2]
[311346491,1705065123480,-500.0,0.00027248,2]
[311346492,1705065123490,-364.40801787,0.00027248,2]
[311346493,1705065123500,-572.59,0.00027248,2]
[311346494,1705065123510,-535.83,0.00027248,2]
[311346495,1705065123520,-611.41,0.00027248,2]
[311346496,1705065123529,-1479.42,0.00027248,2]
[311346497,1705065123539,-500.0,0.00027248,2]
[311346498,1705065123548,-500.0,0.00027248,2]
[311346499,1705065123559,-1130.95,0.00027248,2]
[311346500,1705065123569,-917.05,0.00027248,2]
[311346501,1705065123579,-3574.26,0.00027248,2]
[311346502,1705065123589,-526.02,0.00027248,2]
[311346503,1705065123599,-500.0,0.00027248,2]
[311346504,1705065123609,-514.03,0.00027248,2]
[311346505,1705065123619,-1199.16,0.00027248,2]
[311346506,1705065123628,-500.0,0.00027248,2]
[311346507,1705065123637,-809.87,0.00027248,2]
[311346508,1705065123646,-826.13,0.00027248,2]
[311346509,1705065123656,-258.69898985,0.00027248,2]
[311346510,1705065123666,-629.29,0.00027248,2]
[311346511,1705065123675,-2053.17,0.00027248,2]
[311346512,1705065123684,-500.0,0.00027248,2]
[311346513,1705065123693,-500.0,0.00027248,2]
[311346514,1705065123703,-713.26,0.00027248,2]
[311346515,1705065123713,-896.29,0.00027248,2]
[311346516,1705065123724,-1112.52,0.00027248,2]
[311346517,1705065123735,-333.32051442,0.00027248,2]
[311346518,1705065123744,-1157.27,0.00027248,2]
[311346519,1705065123754,-574.98,0.00027248,2]
[311346520,1705065123763,-597.76,0.00027248,2]
[311346521,1705065123772,-1688.31,0.00027248,2]
[311346522,1705065123782,-528.56318835,0.00027248,2]
[311346523,1705065123792,-974.33,0.00027248,2]
[311346524,1705065123801,-644.03,0.00027248,2]
[311346525,1705065123811,-430.84285807,0.00027248,2]
[311346526,1705065123820,-791.75,0.00027248,2]
[311346527,1705065123829,-2017.32,0.00027248,2]
[311346528,1705065123840,-705.71,0.00027248,2]
[311346529,1705065123851,-655.0,0.00027248,2]
[311346530,1705065123860,-535.6,0.00027248,2]
[311346531,1705065123870,-1374.63,0.00027248,2]
[311346532,1705065123880,-1550.52,0.00027248,2]
[311346533,1705065123890,-1473.58,0.00027248,2]
[311346534,1705065123900,-805.25,0.00027248,2]
[311346535,1705065123910,-1112.34,0.00027248,2]
[311346536,1705065123920,-943.87,0.00027248,2]
[311346537,1705065123930,-565.25,0.00027248,2]
[311346538,1705065123940,-3783.76,0.00027248,2]
[311346539,1705065123949,-500.0,0.00027249,2]
[311346540,1705065123958,-527.36,0.00027249,2]
[311346541,1705065123967,-511.53,0.00027249,2]
[311346542,1705065123977,-500.0,0.00027249,2]
[311346543,1705065123987,-481.40666951,0.00027249,2]
[311346544,1705065123997,-592.66,0.00027249,2]
[311346545,1705065124006,-500.0,0.00027249,2]
[311346546,1705065124015,-500.0,0.00027249,2]
[311346547,1705065124025,-500.0,0.00027249,2]
[311346548,1705065124034,-500.0,0.00027249,2]
[311346549,1705065124043,-500.0,0.00027249,2]
[311346550,1705065124053,-500.0,0.00027249,2]
[311346551,1705065124062,-557.22,0.00027249,2]
[311346552,1705065124072,-304.32500817,0.00027249,2]
[311346553,1705065124081,-500.0,0.00027249,2]
[311346554,1705065124091,-500.0,0.00027249,2]
[311346555,1705065124101,-506.67,0.00027249,2]
[311346556,1705065124111,-555.88,0.00027249,2]
[311346557,1705065124121,-500.0,0.00027249,2]
[311346558,1705065124131,-500.0,0.00027249,2]
[311346559,1705065124140,-710.1,0.00027249,2]
[311346560,1705065124148,-500.0,0.00027249,2]
[311346561,1705065124158,-500.0,0.00027249,2]
[311346562,1705065124168,-500.0,0.00027249,2]
[311346563,1705065124178,-500.0,0.00027249,2]
[311346564,1705065124188,-1022.92,0.00027249,2]
[311346565,1705065124198,-1065.11,0.00027249,2]
[311346566,1705065124207,-973.85,0.00027249,2]
[311346567,1705065124217,-596.64,0.00027249,2]
[311346568,1705065124226,-1316.49,0.00027249,2]
[311346569,1705065124237,-565.15,0.00027249,2]
[311346570,1705065124246,-4908.84,0.00027249,2]
[311346571,1705065124269,-567.77,0.00027249,2]
[311346572,1705065124278,-500.0,0.00027249,2]
[311346573,1705065124288,-1555.67,0.00027249,2]
[311346574,1705065124297,-1400.6,0.00027249,5]
[311346575,1705065124306,-1433.76,0.00027249,2]
[311346576,1705065124315,-1359.51,0.00027249,2]
[311346577,1705065124325,-647.67,0.00027249,2]
[311346578,1705065124333,-756.74,0.00027249,2]
[311346579,1705065124342,-1876.2,0.00027249,2]
[311346580,1705065124351,-1309.3,0.00027249,2]
[311346581,1705065124360,-937.63,0.00027249,2]
[311346582,1705065124549,-2066.36,0.00027249,2]
[311346583,1705065124558,-3090.41,0.00027249,2]
[311346584,1705065124567,-660.9,0.00027249,2]
[311346585,1705065124577,-500.0,0.00027249,2]
[311346586,1705065124586,-202.86506233,0.00027249,2]
[311346587,1705065124594,-500.0,0.00027249,2]
[311346588,1705065124604,-1935.88,0.00027249,2]
[311346589,1705065124614,-505.19,0.00027249,2]
[311346590,1705065124624,-527.44,0.00027249,2]
[311346591,1705065124633,-500.0,0.00027249,2]
[311346592,1705065124642,-1258.22,0.00027249,2]
[311346593,1705065124652,-500.0,0.00027249,2]
[311346594,1705065124662,-500.0,0.00027249,2]
[311346595,1705065124671,-620.89,0.00027249,2]
[311346596,1705065124681,-500.0,0.00027249,2]
[311346597,1705065124691,-993.03,0.00027249,2]
[311346598,1705065124700,-724.59,0.00027249,2]
[311346599,1705065124709,-500.0,0.00027397,2]
[311346600,1705065124719,-500.0,0.00027397,2]
[311346601,1705065124729,-500.0,0.00027397,2]
[311346602,1705065124739,-500.0,0.00027397,2]
[311346603,1705065124748,-500.0,0.00027397,2]
[311346604,1705065124757,-500.0,0.00027397,2]
[311346605,1705065124766,-500.0,0.00027397,2]
[311346606,1705065124775,-500.0,0.00027397,2]
[311346607,1705065124785,-500.0,0.00027397,2]
[311346608,1705065124794,-500.0,0.00027397,2]
[311346609,1705065124803,-500.0,0.00027397,2]
[311346610,1705065124812,-495.92894582,0.00027397,2]
[311346611,1705065124822,-2000.0,0.00027397,30]
[311346612,1705065124831,-2000.0,0.00027397,30]
[311346613,1705065124841,-2000.0,0.00027397,30]
[311346614,1705065124854,-2000.0,0.00027397,30]
[311346615,1705065124864,-2000.0,0.00027397,30]
[311346616,1705065124874,-2000.0,0.00027397,30]
[311346617,1705065124883,-933.84880384,0.00027397,30]
[311346618,1705065124893,-1000.0,0.00027397,7]
[311346619,1705065124903,-1000.0,0.00027397,7]
[311346620,1705065124912,-1014.46561416,0.00027397,7]
[311346621,1705065124923,-1124.69742717,0.00027397,2]
[311346622,1705065124932,-500.0,0.00027397,15]
[311346623,1705065124942,-500.0,0.00027397,15]
[311346624,1705065124951,-506.47353223,0.00027397,15]
[311346625,1705065124960,-500.0,0.00027397,2]
[311346626,1705065124970,-511.95876091,0.00027397,2]
[311346627,1705065124979,-1000.0,0.00027397,2]
[311346628,1705065124989,-1000.0,0.00027397,2]
[311346629,1705065124998,-1000.0,0.00027397,2]
[311346630,1705065125008,-1000.0,0.00027397,2]
[311346631,1705065125017,-1000.0,0.00027397,2]
[311346632,1705065125027,-500.0,0.00027397,2]
[311346633,1705065125036,-500.0,0.00027397,2]
[311346634,1705065125047,-1000.0,0.00027397,2]
[311346635,1705065125057,-562.51701001,0.00027397,2]
[311346636,1705065125067,-1000.0,0.00027397,2]
[311346637,1705065125077,-1000.0,0.00027397,2]
[311346638,1705065125087,-1011.0855578,0.00027397,2]
[311346639,1705065125097,-500.0,0.00027397,2]
[311346640,1705065125107,-500.0,0.00027397,2]
[311346641,1705065125117,-500.0,0.00027397,2]
[311346642,1705065125126,-500.0,0.00027397,2]
[311346643,1705065125136,-500.0,0.00027397,2]
[311346644,1705065125147,-500.0,0.00027397,2]
[311346645,1705065125157,-500.0,0.00027397,2]
[311346646,1705065125166,-500.0,0.00027397,2]
[311346647,1705065125176,-500.0,0.00027397,2]
[311346648,1705065125187,-500.0,0.00027397,2]
[311346649,1705065125197,-500.0,0.00027397,2]
[311346650,1705065125207,-500.0,0.00027397,2]
[311346651,1705065125217,-500.0,0.00027397,2]
[311346652,1705065125227,-500.0,0.00027397,2]
[311346653,1705065125239,-500.0,0.00027397,2]
[311346654,1705065125248,-500.0,0.00027397,2]
[311346655,1705065125258,-500.0,0.00027397,2]
[311346656,1705065125283,-500.0,0.00027397,2]
[311346657,1705065125294,-155.0,0.00027397,2]
[311346658,1705065125305,-1002.03564499,0.00027397,2]
[311346659,1705065125316,-1000.0,0.00027397,2]
[311346660,1705065125328,-1000.0,0.00027397,2]
[311346661,1705065125338,-1000.0,0.00027397,2]
[311346662,1705065125349,-1000.0,0.00027397,2]
[311346663,1705065125359,-1000.0,0.00027397,2]
[311346664,1705065125370,-1000.0,0.00027397,2]
[311346665,1705065125380,-1000.0,0.00027397,2]
[311346666,1705065125391,-1000.0,0.00027397,2]
[311346667,1705065125401,-1000.0,0.00027397,2]
[311346668,1705065125411,-1000.0,0.00027397,2]
[311346669,1705065125422,-1000.0,0.00027397,2]
[311346670,1705065125432,-1000.0,0.00027397,2]
[311346671,1705065125442,-1000.0,0.00027397,2]
[311346672,1705065125451,-1000.0,0.00027397,2]
[311346673,1705065125461,-1000.0,0.00027397,2]
[311346674,1705065125470,-654.52095236,0.00027397,2]
[311346675,1705065125480,-250.0,0.00027397,2]
[311346676,1705065125492,-434.34,0.00027397,2]
[311346677,1705065125501,-3224.07620175,0.000274,2]
[311346678,1705065125511,-250.0,0.000274,2]
[311346679,1705065125520,-500.0,0.00027451,2]
[311346680,1705065125530,-1095.03,0.00027519,2]
[311346681,1705065125540,-2336.53,0.00027519,5]
[311346682,1705065125550,-660.44,0.00027519,2]
[311346683,1705065125559,-4983.08,0.00027519,2]
[311346684,1705065125569,-299.54813644,0.00027519,2]
[311346685,1705065125578,-6835.31,0.00027519,2]
[311346686,1705065125588,-1968.89,0.00027519,2]
[311346687,1705065125598,-14321.2,0.00027519,2]
[311346688,1705065125607,-549.3,0.00027519,2]
[311346689,1705065125617,-619.15,0.00027519,2]
[311346690,1705065125626,-1403.82,0.00027519,2]
[311346691,1705065125636,-722.98,0.00027519,2]
[311346692,1705065125650,-500.0,0.00027519,2]
[311346693,1705065125672,-607.61,0.00027519,2]
[311346694,1705065125689,-510.07,0.00027519,2]
[311346695,1705065125707,-749.86,0.00027519,2]
[311346696,1705065125726,-3048.94,0.00027519,2]
[311346697,1705065125747,-500.0,0.00027519,2]
[311346698,1705065125766,-1294.29,0.00027519,2]
[311346699,1705065125782,-984.37,0.00027519,2]
[311346700,1705065125805,-675.45,0.00027519,2]
[311346701,1705065125823,-1709.12,0.00027519,2]
[311346702,1705065125845,-937.07,0.00027519,2]
[311346703,1705065125866,-2370.13,0.00027519,2]
[311346704,1705065125879,-793.03,0.00027519,2]
[311346705,1705065125895,-786.71,0.00027519,2]
[311346706,1705065125914,-1074.66,0.00027519,2]
[311346707,1705065125930,-2000.06,0.00027519,2]
[311346708,1705065125947,-3928.94,0.00027519,2]
[311346709,1705065125965,-1033.75,0.00027519,2]
[311346710,1705065125982,-874.55,0.00027519,2]
[311346711,1705065125999,-1304.48,0.00027519,2]
[311346712,1705065126015,-6963.0,0.00027519,2]
[311346713,1705065126032,-1048.12,0.00027519,2]
[311346714,1705065126047,-500.0,0.00027519,2]
[311346715,1705065126063,-1205.23,0.00027519,2]
[311346716,1705065126079,-736.05,0.00027519,2]
[311346717,1705065126095,-9796.43,0.00027519,2]
[311346718,1705065126110,-500.0,0.00027519,2]
[311346719,1705065126126,-2056.42,0.00027519,2]
[311346720,1705065126142,-600.05,0.00027519,2]
[311346721,1705065126157,-1076.15,0.00027519,2]
[311346722,1705065126172,-500.0,0.00027519,2]
[311346723,1705065126186,-1891.13,0.00027519,2]
[311346724,1705065126201,-2556.24,0.00027519,2]
[311346725,1705065126217,-750.14,0.00027519,2]
[311346726,1705065126233,-2721.6,0.00027519,2]
[311346727,1705065126250,-884.19,0.00027519,2]
[311346728,1705065126266,-2018.21,0.00027519,2]
[311346729,1705065126282,-2134.94,0.00027519,2]
[311346730,1705065126297,-1493.07,0.00027519,2]
[311346731,1705065126311,-1084.3,0.00027519,2]
[311346732,1705065126328,-612.02,0.00027519,2]
[311346733,1705065126344,-500.0,0.00027519,2]
[311346734,1705065126359,-5673.19,0.00027519,2]
[311346735,1705065126374,-1028.9,0.00027519,2]
[311346736,1705065126389,-2233.34,0.00027519,2]
[311346737,1705065126404,-710.28,0.00027519,2]
[311346738,1705065126420,-1431.33,0.00027522,2]
[311346739,1705065126435,-500.0,0.00027522,2]
[311346740,1705065126451,-500.0,0.00027522,2]
[311346741,1705065126467,-500.0,0.00027522,2]
[311346742,1705065126482,-526.28,0.00027522,2]
[311346743,1705065126498,-500.0,0.00027522,2]
[311346744,1705065126514,-500.0,0.00027522,2]
[311346745,1705065126529,-543.44,0.00027522,2]
[311346746,1705065126545,-500.0,0.00027522,2]
[311346747,1705065126561,-500.0,0.00027522,2]
[311346748,1705065126576,-553.95,0.00027522,2]
[311346749,1705065126591,-217.06658892,0.00027522,2]
[311346750,1705065126608,-516.33,0.00027522,2]
[311346751,1705065126624,-586.6,0.00027522,2]
[311346752,1705065126641,-500.0,0.00027522,2]
[311346753,1705065126656,-500.0,0.00027522,2]
[311346754,1705065126672,-515.42,0.00027522,2]
[311346755,1705065126687,-592.8,0.00027522,2]
[311346756,1705065126704,-500.0,0.00027522,2]
[311346757,1705065126719,-500.0,0.00027522,2]
[311346758,1705065126736,-150.0,0.00027522,2]
[311346759,1705065126753,-500.0,0.00027522,2]
[311346760,1705065126769,-572.59,0.00027522,2]
[311346761,1705065126785,-535.83,0.00027522,2]
[311346762,1705065126801,-611.41,0.00027522,2]
[311346763,1705065126816,-1479.42,0.00027522,2]
[311346764,1705065126833,-614.06373131,0.00027522,2]
[311346765,1705065126850,-500.0,0.00027522,2]
[311346766,1705065126866,-1130.95,0.00027522,2]
[311346767,1705065126881,-917.05,0.00027522,2]
[311346768,1705065126897,-3574.26,0.00027522,2]
[311346769,1705065126912,-526.02,0.00027522,2]
[311346770,1705065126928,-500.0,0.00027522,2]
[311346771,1705065126945,-500.0,0.00027522,2]
[311346772,1705065126961,-514.03,0.00027522,2]
[311346773,1705065126975,-1199.16,0.00027522,2]
[311346774,1705065126991,-500.0,0.00027522,2]
[311346775,1705065127005,-809.87,0.00027522,2]
[311346776,1705065127025,-826.13,0.00027522,2]
[311346777,1705065127040,-629.29,0.00027522,2]
[311346778,1705065127054,-2053.17,0.00027522,2]
[311346779,1705065127070,-500.0,0.00027522,2]
[311346780,1705065127084,-500.0,0.00027522,2]
[311346781,1705065127099,-713.26,0.00027522,2]
[311346782,1705065127114,-896.29,0.00027522,2]
[311346783,1705065127128,-1112.52,0.00027522,2]
[311346784,1705065127144,-1157.27,0.00027522,2]
[311346785,1705065127159,-574.98,0.00027522,2]
[311346786,1705065127174,-597.76,0.00027522,2]
[311346787,1705065127189,-1688.31,0.00027522,2]
[311346788,1705065127204,-974.33,0.00027522,2]
[311346789,1705065127219,-644.03,0.00027522,2]
[311346790,1705065127233,-791.75,0.00027522,2]
[311346791,1705065127250,-2017.32,0.00027522,2]
[311346792,1705065127265,-655.0,0.00027522,2]
[311346793,1705065127280,-535.6,0.00027522,2]
[311346794,1705065127296,-705.71,0.00027522,2]
[311346795,1705065127312,-1374.63,0.00027522,2]
[311346796,1705065127326,-1550.52,0.00027522,2]
[311346797,1705065127341,-1473.58,0.00027522,2]
[311346798,1705065127355,-805.25,0.00027522,2]
[311346799,1705065127371,-1112.34,0.00027522,2]
[311346800,1705065127386,-943.87,0.00027522,2]
[311346801,1705065127402,-565.25,0.00027522,2]
[311346802,1705065127623,-3783.76,0.00027522,2]
[311346803,1705065127648,-500.0,0.00027523,2]
[311346804,1705065127658,-527.36,0.00027523,2]
[311346805,1705065127668,-511.53,0.00027523,2]
[311346806,1705065127677,-422.58723003,0.00027523,2]
[311346807,1705065127686,-592.66,0.00027523,2]
[311346808,1705065127696,-477.46281136,0.00027523,2]
[311346809,1705065127705,-272.47217795,0.00027523,2]
[311346810,1705065127715,-500.0,0.00027523,2]
[311346811,1705065127724,-500.0,0.00027523,2]
[311346812,1705065127734,-500.0,0.00027523,2]
[311346813,1705065127744,-500.0,0.00027523,2]
[311346814,1705065127753,-557.22,0.00027523,2]
[311346815,1705065127763,-500.0,0.00027523,2]
[311346816,1705065127772,-500.0,0.00027523,2]
[311346817,1705065127782,-506.67,0.00027523,2]
[311346818,1705065127791,-555.88,0.00027523,2]
[311346819,1705065127801,-500.0,0.00027523,2]
[311346820,1705065127810,-500.0,0.00027523,2]
[311346821,1705065127820,-710.1,0.00027523,2]
[311346822,1705065127829,-500.0,0.00027523,2]
[311346823,1705065127838,-500.0,0.00027523,2]
[311346824,1705065127848,-500.0,0.00027523,2]
[311346825,1705065127858,-500.0,0.00027523,2]
[311346826,1705065127867,-1022.92,0.00027523,2]
[311346827,1705065127877,-1065.11,0.00027523,2]
[311346828,1705065127887,-973.85,0.00027523,2]
[311346829,1705065127896,-596.64,0.00027523,2]
[311346830,1705065127906,-1316.49,0.00027523,2]
[311346831,1705065127914,-565.15,0.00027523,2]
[311346832,1705065127925,-4908.84,0.00027523,2]
[311346833,1705065127935,-567.77,0.00027523,2]
[311346834,1705065127945,-607.06876786,0.00027523,2]
[311346835,1705065127954,-1555.67,0.00027523,2]
[311346836,1705065127963,-1400.6,0.00027523,5]
[311346837,1705065127973,-1433.76,0.00027523,2]
[311346838,1705065127982,-1359.51,0.00027523,2]
[311346839,1705065127992,-647.67,0.00027523,2]
[311346840,1705065128002,-756.74,0.00027523,2]
[311346841,1705065128012,-1876.2,0.00027523,2]
[311346842,1705065128022,-1309.3,0.00027523,2]
[311346843,1705065128032,-937.63,0.00027523,2]
[311346844,1705065128043,-2066.36,0.00027523,2]
[311346845,1705065128053,-3090.41,0.00027523,2]
[311346846,1705065128064,-660.9,0.00027523,2]
[311346847,1705065128074,-500.0,0.00027523,2]
[311346848,1705065128084,-500.0,0.00027523,2]
[311346849,1705065128094,-1935.88,0.00027523,2]
[311346850,1705065128103,-505.19,0.00027523,2]
[311346851,1705065128113,-527.44,0.00027523,2]
[311346852,1705065128124,-500.0,0.00027523,2]
[311346853,1705065128133,-1258.22,0.00027523,2]
[311346854,1705065128142,-500.0,0.00027523,2]
[311346855,1705065128153,-500.0,0.00027523,2]
[311346856,1705065128162,-620.89,0.00027523,2]
[311346857,1705065128171,-500.0,0.00027523,2]
[311346858,1705065128180,-993.03,0.00027523,2]
[311346859,1705065128190,-724.59,0.00027523,2]
[311346860,1705065128200,-460.54,0.00027537,2]
[311346861,1705065128210,-434.34,0.00027556,2]
[311346862,1705065128220,-1000.0,0.000276,2]
[311346863,1705065128230,-200.0,0.00027616,2]
[311346864,1705065128239,-893.01,0.00027624,2]
[311346865,1705065128249,-434.34,0.00027714,2]
[311346866,1705065128260,-500.0,0.00027763,2]
[311346867,1705065128270,-150.0,0.00027792,2]
[311346868,1705065128280,-1095.03,0.00027793,2]
[311346869,1705065128289,-2336.53,0.00027793,5]
[311346870,1705065128299,-660.44,0.00027793,2]
[311346871,1705065128308,-4983.08,0.00027793,2]
[311346872,1705065128317,-6835.31,0.00027793,2]
[311346873,1705065128327,-1968.89,0.00027793,2]
[311346874,1705065128337,-14321.2,0.00027793,2]
[311346875,1705065128346,-549.3,0.00027793,2]
[311346876,1705065128355,-619.15,0.00027793,2]
[311346877,1705065128364,-1403.82,0.00027793,2]
[311346878,1705065128373,-722.98,0.00027793,2]
[311346879,1705065128383,-500.0,0.00027793,2]
[311346880,1705065128393,-607.61,0.00027793,2]
[311346881,1705065128403,-510.07,0.00027793,2]
[311346882,1705065128413,-749.86,0.00027793,2]
[311346883,1705065128423,-3048.94,0.00027793,2]
[311346884,1705065128433,-500.0,0.00027793,2]
[311346885,1705065128442,-1294.29,0.00027793,2]
[311346886,1705065128453,-984.37,0.00027793,2]
[311346887,1705065128462,-675.45,0.00027793,2]
[311346888,1705065128471,-1709.12,0.00027793,2]
[311346889,1705065128481,-937.07,0.00027793,2]
[311346890,1705065128490,-2370.13,0.00027793,2]
[311346891,1705065128500,-793.03,0.00027793,2]
[311346892,1705065128509,-786.71,0.00027793,2]
[311346893,1705065128519,-1074.66,0.00027793,2]
[311346894,1705065128529,-2000.06,0.00027793,2]
[311346895,1705065128539,-3928.94,0.00027793,2]
[311346896,1705065128549,-1033.75,0.00027793,2]
[311346897,1705065128560,-874.55,0.00027793,2]
[311346898,1705065128569,-1304.48,0.00027793,2]
[311346899,1705065128578,-6963.0,0.00027793,2]
[311346900,1705065128588,-1048.12,0.00027793,2]
[311346901,1705065128597,-500.0,0.00027793,2]
[311346902,1705065128607,-1205.23,0.00027793,2]
[311346903,1705065128616,-736.05,0.00027793,2]
[311346904,1705065128626,-9796.43,0.00027793,2]
[311346905,1705065128636,-500.0,0.00027793,2]
[311346906,1705065128646,-2056.42,0.00027793,2]
[311346907,1705065128655,-600.05,0.00027793,2]
[311346908,1705065128665,-1076.15,0.00027793,2]
[311346909,1705065128675,-500.0,0.00027793,2]
[311346910,1705065128685,-1891.13,0.00027793,2]
[311346911,1705065128694,-2556.24,0.00027793,2]
[311346912,1705065128704,-750.14,0.00027793,2]
[311346913,1705065128714,-2721.6,0.00027793,2]
[311346914,1705065128724,-884.19,0.00027793,2]
[311346915,1705065128734,-2018.21,0.00027793,2]
[311346916,1705065128744,-2134.94,0.00027793,2]
[311346917,1705065128754,-1493.07,0.00027793,2]
[311346918,1705065128763,-1084.3,0.00027793,2]
[311346919,1705065128774,-612.02,0.00027793,2]
[311346920,1705065128783,-543.59712081,0.00027793,2]
[311346921,1705065128792,-5673.19,0.00027793,2]
[311346922,1705065128802,-1028.9,0.00027793,2]
[311346923,1705065128811,-2233.34,0.00027793,2]
[311346924,1705065128821,-710.28,0.00027793,2]
[311346925,1705065128831,-1431.33,0.00027796,2]
[311346926,1705065128841,-607.80047719,0.00027796,2]
[311346927,1705065128855,-500.0,0.00027796,2]
[311346928,1705065128865,-543.13492212,0.00027796,2]
[311346929,1705065128875,-526.28,0.00027796,2]
[311346930,1705065128884,-500.0,0.00027796,2]
[311346931,1705065128894,-485.60434106,0.00027796,2]
[311346932,1705065128903,-543.44,0.00027796,2]
[311346933,1705065128913,-500.0,0.00027796,2]
[311346934,1705065128922,-500.0,0.00027796,2]
[311346935,1705065128931,-553.95,0.00027796,2]
[311346936,1705065128941,-516.33,0.00027796,2]
[311346937,1705065128951,-586.6,0.00027796,2]
[311346938,1705065128960,-209.08915457,0.00027796,2]
[311346939,1705065128969,-450.95869668,0.00027796,2]
[311346940,1705065128979,-515.42,0.00027796,2]
[311346941,1705065128989,-592.8,0.00027796,2]
[311346942,1705065128999,-500.0,0.00027796,2]
[311346943,1705065129009,-500.0,0.00027796,2]
[311346944,1705065129019,-150.0,0.00027796,2]
[311346945,1705065129028,-500.0,0.00027796,2]
[311346946,1705065129037,-572.59,0.00027796,2]
[311346947,1705065129047,-535.83,0.00027796,2]